bitfinex-derivatives/quotes_ETHF0:USTF0_20250410
["timestamp","ask_amount","ask_price","bid_price","bid_amount"]
[1744258989914,2.90351,1613.5,1613.4,42.04936591]
[1744258990716,1.6635,1613.5,1613.4,42.04936591]
[1744258990919,2.90351,1613.5,1613.4,43.66996591]
[1744258992623,2.90351,1613.5,1613.4,40.80928591]
[1744258994619,2.90351,1613.5,1613.4,0.00928591]
[1744258995521,2.90351,1613.5,1613.4,1.24936591]
[1744258995709,13.19850409,1613.5,1613.4,0.00928591]
[1744258996017,1.24039,1613.1,1613.0,1.24035]
[1744258996410,1.24031,1613.1,1613.0,43.69405]
[1744258997118,4.32519591,1613.2,1613.1,1.24031]
[1744258997311,0.00928591,1613.2,1613.1,5.97241]
[1744258998415,0.00928591,1613.2,1613.1,46.77241]
[1744258999819,1.24952591,1613.2,1613.1,46.77241]
[1744259000819,0.00928591,1613.2,1613.1,46.77241]
[1744259003220,0.00928591,1613.2,1613.1,51.77241]
[1744259004819,5.91e-06,1613.2,1613.1,51.77241]
[1744259005026,5.91e-06,1613.2,1613.1,57.76841]
[1744259005826,5.67672323,1613.8,1613.3,9.40846]
[1744259006116,4.38585323,1613.8,1613.7,4.44765]
[1744259006318,4.38585323,1613.8,1613.7,8.90565]
[1744259006518,4.38585323,1613.8,1613.7,49.70565]
[1744259006720,4.38585323,1613.8,1613.7,51.30735]
[1744259009121,4.38585323,1613.8,1613.7,56.30735]
[1744259009326,9.6e-06,1613.8,1613.7,56.30735]
[1744259009620,3.82477714,1614.0,1613.9,1.2397]
[1744259009821,1.78523714,1614.0,1613.9,4.91562235]
[1744259010021,0.99313714,1614.0,1613.9,9.91562235]
[1744259010220,0.99313714,1614.0,1613.9,11.46052235]
[1744259010428,7.14e-06,1614.0,1613.9,52.26052235]
[1744259010620,9.2434386,1614.1,1614.0,1.23962]
[1744259010820,9.2434386,1614.1,1614.0,8.80612]
[1744259011123,9.2434386,1614.1,1614.0,13.80612]
[1744259011429,9.2434386,1614.1,1614.0,54.60612]
[1744259011632,1.5228,1614.6,1614.5,1.23924]
[1744259012226,9.23415269,1614.7,1614.6,1.23916]
[1744259012431,9.23415269,1614.7,1614.6,4.44696]
[1744259012932,10.84785269,1614.7,1614.6,6.03966]
[1744259013426,12.08694269,1614.7,1614.6,3.2078]
[1744259013626,1.23928,1614.5,1614.4,1.2393]
[1744259013826,2.85291,1614.6,1614.4,1.2393]
[1744259014027,1.6137,1614.5,1614.4,1.2393]
[1744259014225,2.85294,1614.5,1614.4,1.2393]
[1744259014621,1.6137,1614.5,1614.3,6.03984]
[1744259014821,1.23923,1614.6,1614.4,1.23932]
[1744259015025,1.23923,1614.6,1614.5,4.44704]
[1744259015026,1.23916,1614.6,1614.5,4.44704]
[1744259015230,1.23916,1614.6,1614.5,3.2078]
[1744259015531,1.23932,1614.4,1614.3,3.2078]
[1744259015828,7.55395,1614.6,1614.3,3.2078]
[1744259016032,1.23937,1614.4,1614.3,4.44717]
[1744259016931,4.23927,1614.4,1614.3,4.44717]
[1744259017432,4.23927,1614.4,1614.3,1.23937]
[1744259018534,2.9999,1614.4,1614.3,4.44717]
[1744259018734,5.83399409,1614.5,1614.4,1.23932]
[1744259019033,3.0202,1614.7,1614.6,1.23916]
[1744259019225,2.70399,1614.7,1614.6,4.44696]
[1744259019834,1.4649,1614.7,1614.6,4.44696]
[1744259021033,0.00928591,1614.8,1614.6,3.2078]
[1744259021231,0.00928591,1614.8,1614.7,2.79389]
[1744259022331,1.24829591,1614.8,1614.7,1.23909]
[1744259022531,1.23909,1614.7,1614.6,4.44691]
[1744259023238,1.24835591,1614.8,1614.7,1.23909]
[1744259023740,1.23909,1614.7,1614.6,3.2078]
[1744259023942,1.23909,1614.7,1614.6,4.44696]
[1744259025544,1.23909,1614.7,1614.6,1.23916]
[1744259026642,5.84328,1614.8,1614.7,1.23909]
[1744259026643,7.08233,1614.8,1614.7,1.23909]
[1744259026839,5.84328,1614.8,1614.7,4.44689]
[1744259027436,0.00928591,1614.8,1614.7,10.99309]
[1744259028242,0.00928591,1614.8,1614.7,5.99309]
[1744259028643,1.24829591,1614.8,1614.7,4.44689]
[1744259029144,0.00928591,1614.8,1614.7,4.44689]
[1744259029645,0.00928591,1614.8,1614.7,6.11989]
[1744259029845,0.00928591,1614.8,1614.7,7.71949]
[1744259031649,0.00928591,1614.8,1614.7,6.11989]
[1744259031848,1.53708591,1614.8,1614.7,6.11989]
[1744259032249,0.00928591,1614.8,1614.7,6.11989]
[1744259033047,0.00928591,1614.8,1614.7,11.11989]
[1744259033354,5.91e-06,1614.8,1614.7,13.27909]
[1744259033852,5.91e-06,1614.8,1614.7,54.07909]
[1744259034245,5.91e-06,1614.8,1614.7,55.07509]
[1744259034752,5.91e-06,1614.8,1614.7,54.45509]
[1744259036447,5.91e-06,1614.8,1614.7,59.45509]
[1744259038164,5.91e-06,1614.8,1614.7,54.45509]
[1744259039658,1.23824,1615.8,1615.7,1.23832]
[1744259039965,3.068,1615.8,1615.7,1.23832]
[1744259040260,8.068,1615.8,1615.7,1.23832]
[1744259040661,3.068,1615.8,1615.7,1.23832]
[1744259041556,3.068,1615.8,1615.7,2.79242]
[1744259041758,1.49308591,1615.9,1615.7,2.79242]
[1744259041759,0.00928591,1615.9,1615.8,1.23824]
[1744259042063,0.00928591,1615.9,1615.8,6.00014]
[1744259042260,0.00928591,1615.9,1615.8,51.86124]
[1744259042261,5.91e-06,1615.9,1615.8,51.86124]
[1744259042565,5.91e-06,1615.9,1615.8,58.41534]
[1744259043459,12.04559387,1616.5,1616.4,1.23778]
[1744259043662,12.04559387,1616.5,1616.4,4.44558]
[1744259044163,12.04559387,1616.5,1616.4,6.09548]
[1744259044365,12.04559387,1616.5,1616.4,46.89548]
[1744259044865,1.4804,1616.9,1616.5,3.09426]
[1744259045161,1.23748,1616.8,1616.7,3.2078]
[1744259045370,1.6533,1616.8,1616.7,7.6548]
[1744259045668,1.6533,1616.8,1616.7,8.89235]
[1744259045969,1.23758,1616.7,1616.6,4.447]
[1744259046176,2.89083,1616.8,1616.6,5.68463]
[1744259046370,1.6727,1616.7,1616.6,5.68463]
[1744259046670,1.6727,1616.7,1616.6,8.89243]
[1744259048266,7.91025,1616.7,1616.6,3.2078]
[1744259049765,1.23763,1616.6,1616.5,0.00928591]
[1744259049966,2.86243,1616.6,1616.5,0.00928591]
[1744259050166,7.86243,1616.6,1616.5,0.00928591]
[1744259052474,1.23771,1616.5,1616.4,40.8]
[1744259052773,1.23771,1616.5,1616.2,4.44572]
[1744259052774,1.23786,1616.3,1616.2,4.44572]
[1744259053173,1.23785,1616.4,1616.3,1.23782]
[1744259053377,1.23786,1616.3,1616.2,44.0078]
[1744259053671,2.85536,1616.3,1616.2,45.25495591]
[1744259055171,2.85536,1616.3,1616.2,44.01708591]
[1744259055377,2.85536,1616.3,1616.2,45.25502591]
[1744259057081,2.85536,1616.3,1616.2,44.01708591]
[1744259057376,4.32176,1616.3,1616.2,45.25502591]
[1744259058077,4.32176,1616.3,1616.2,44.01708591]
[1744259058277,4.32176,1616.3,1616.2,40.80928591]
[1744259058776,3.0839,1616.3,1616.2,42.04722591]
[1744259058979,1.23781,1616.4,1616.3,1.23786]
[1744259060282,2.87641,1616.4,1616.3,1.23786]
[1744259060481,1.23786,1616.3,1616.2,40.80928591]
[1744259060677,4.46786,1616.3,1616.2,40.80928591]
[1744259060977,4.46786,1616.3,1616.2,45.25502591]
[1744259063481,4.46786,1616.3,1616.2,40.80928591]
[1744259063879,4.46786,1616.3,1616.2,0.00928591]
[1744259065183,9.46786,1616.3,1616.2,0.00928591]
[1744259066785,1.23801,1616.1,1616.0,3.2078]
[1744259067083,1.23801,1616.1,1616.0,44.0078]
[1744259067985,1.23809,1616.0,1615.9,0.00928591]
[1744259068487,6.23809,1616.0,1615.9,0.00928591]
[1744259068780,3.09561,1615.8,1615.4,6.0151]
[1744259068986,1.23847,1615.5,1615.4,6.0151]
[1744259069184,1.23847,1615.5,1615.4,46.8151]
[1744259070184,0.00928591,1615.6,1615.5,1.23847]
[1744259070381,0.00928591,1615.6,1615.5,2.89997]
[1744259074589,1.24768591,1615.6,1615.5,2.89997]
[1744259075690,2.77968591,1615.6,1615.5,2.89997]
[1744259076193,0.00928591,1615.6,1615.5,2.89997]
[1744259076687,1.24768591,1615.6,1615.5,2.89997]
[1744259076887,2.81298591,1615.6,1615.5,2.89997]
[1744259077985,1.23847,1615.5,1615.4,40.8]
[1744259078287,4.28237,1615.5,1615.4,40.8]
[1744259078485,1.23855,1615.4,1615.3,1.24785591]
[1744259078682,2.80385,1615.4,1615.3,1.24785591]
[1744259078884,2.80385,1615.4,1615.3,42.04785591]
[1744259079085,7.80385,1615.4,1615.3,40.80928591]
[1744259079292,18.08184409,1615.4,1615.3,0.00928591]
[1744259079483,18.08184409,1615.4,1614.9,3.2078]
[1744259079484,1.23886,1615.0,1614.9,3.2078]
[1744259079690,1.23896,1615.0,1614.9,40.8]
[1744259080079,1.5747,1615.0,1614.9,42.03893]
[1744259080383,2.81356,1615.0,1614.9,45.24673]
[1744259081188,2.81356,1615.0,1614.9,46.88783]
[1744259081390,14.60763409,1615.1,1615.0,1.23886]
[1744259081691,7.07283409,1615.1,1615.0,2.87996]
[1744259082791,5.83399409,1615.1,1615.0,2.87996]
[1744259082992,7.07277409,1615.1,1615.0,2.87996]
[1744259083890,1.23878,1615.1,1615.0,2.87996]
[1744259087495,1.23878,1615.1,1615.0,1.23886]
[1744259087792,1.23873,1615.2,1615.1,1.2387]
[1744259087991,11.87069409,1615.3,1615.1,1.2387]
[1744259087992,8.66538409,1615.3,1615.2,1.2387]
[1744259088388,10.23878409,1615.3,1615.2,1.2387]
[1744259088596,1.2387,1615.2,1615.1,4.7948]
[1744259088795,2.8951,1615.2,1615.1,4.7948]
[1744259088989,2.8951,1615.2,1615.1,6.03354]
[1744259089698,2.8951,1615.2,1615.1,2.82574]
[1744259089893,1.23886,1615.1,1615.0,1.2388]
[1744259090095,2.89526,1615.1,1615.0,1.2388]
[1744259091897,1.23886,1615.0,1614.9,44.0078]
[1744259092193,4.35946,1615.0,1614.9,40.8]
[1744259092602,5.92596,1615.0,1614.9,40.8]
[1744259093100,1.23893,1614.9,1614.8,0.00928591]
[1744259093393,2.90843,1614.9,1614.8,1.24829591]
[1744259093589,2.90843,1614.9,1614.8,42.04829591]
[1744259093790,2.90843,1614.9,1614.8,43.68749591]
[1744259094893,10.09049409,1615.0,1614.9,1.23893]
[1744259095089,5.83399409,1615.0,1614.9,2.87693]
[1744259096000,7.07285409,1615.0,1614.9,2.87693]
[1744259097201,5.83399409,1615.0,1614.9,2.87693]
[1744259097397,7.07285409,1615.0,1614.9,2.87693]
[1744259097595,8.53495409,1615.0,1614.9,2.87693]
[1744259098094,7.29609409,1615.0,1614.9,2.87693]
[1744259098297,5.83399409,1615.0,1614.9,2.87693]
[1744259098497,2.86253,1615.1,1615.0,1.23886]
[1744259098696,4.442,1615.2,1615.1,1.23878]
[1744259098897,7.2694,1615.2,1615.1,1.23878]
[1744259099100,2.8274,1615.2,1615.1,2.82678]
[1744259099297,1.23878,1615.1,1615.0,4.4466]
[1744259099506,2.82748,1615.1,1615.0,1.2388]
[1744259099704,1.5887,1615.1,1615.0,4.4466]
[1744259099899,1.23873,1615.2,1615.1,1.23878]
[1744259100097,1.23873,1615.2,1615.1,2.82678]
[1744259100497,10.46529409,1615.3,1615.1,2.82678]
[1744259100801,7.29609409,1615.3,1615.2,6.1091]
[1744259101191,5.83399409,1615.3,1615.2,6.1091]
[1744259102402,7.07262409,1615.3,1615.2,6.1091]
[1744259102603,8.72932409,1615.3,1615.2,6.1091]
[1744259102797,1.23878,1615.1,1614.8,4.77898591]
[1744259102995,1.23892,1615.0,1614.8,3.21708591]
[1744259103202,1.23886,1615.0,1614.9,1.6626]
[1744259103402,3.1788,1615.1,1614.9,43.7015]
[1744259103700,1.23886,1615.0,1614.9,40.8]
[1744259104005,1.23893,1614.9,1614.8,1.24826591]
[1744259104306,2.68213,1614.9,1614.8,1.24826591]
[1744259104491,2.68213,1614.9,1614.8,43.60466591]
[1744259105403,2.68213,1614.9,1614.8,42.36568591]
[1744259105703,4.29463,1614.9,1614.8,42.36568591]
[1744259105901,4.29463,1614.9,1614.8,43.60469591]
[1744259106299,4.29463,1614.9,1614.8,40.80928591]
[1744259106496,15.12862409,1614.9,1614.4,3.2078]
[1744259106801,1.23914,1614.7,1614.6,1.23911]
[1744259107002,1.23914,1614.7,1614.6,42.03911]
[1744259107199,2.87594,1614.7,1614.6,42.03911]
[1744259107905,4.47104,1614.7,1614.6,40.8]
[1744259109899,1.23916,1614.6,1614.5,0.00928591]
[1744259110096,4.28226,1614.6,1614.5,0.00928591]
[1744259110493,10.11625409,1614.6,1614.5,0.00928591]
[1744259110699,18.32405409,1614.6,1614.5,0.00928591]
[1744259111809,10.11625409,1614.6,1614.5,0.00928591]
[1744259112401,5.83399409,1614.6,1614.5,1.24852591]
[1744259112604,5.83399409,1614.6,1614.5,2.91952591]
[1744259113005,0.00928591,1614.7,1614.6,1.23916]
[1744259113205,0.00928591,1614.7,1614.6,7.44086]
[1744259113409,0.00928591,1614.7,1614.6,8.99766]
[1744259114408,4.80621436,1614.7,1614.6,8.99766]
[1744259118813,0.00928591,1614.7,1614.6,8.99766]
[1744259122408,0.00928591,1614.7,1614.6,5.98876]
[1744259122715,1.23916,1614.6,1614.5,1.24851591]
[1744259123017,11.76205409,1614.6,1614.5,0.00928591]
[1744259123217,16.76205409,1614.6,1614.5,0.00928591]
[1744259127523,1.23939,1614.3,1614.2,42.03941]
[1744259128214,4.43809,1614.3,1614.2,42.03941]
[1744259130920,4.43809,1614.3,1614.2,1.23941]
[1744259131220,1.23947,1614.2,1614.1,0.00619062]
[1744259131522,4.33827,1614.2,1614.1,0.00619062]
[1744259133016,10.17226409,1614.2,1614.1,6.2e-07]
[1744259133322,18.38006409,1614.2,1614.1,6.2e-07]
[1744259133825,1.23978,1613.8,1613.7,3.2078]
[1744259134125,5.68078,1613.8,1613.7,3.2078]
[1744259134620,7.5391,1613.8,1613.7,4.44765]
[1744259134811,5.83399409,1613.9,1613.8,1.23978]
[1744259135017,7.07369409,1613.9,1613.8,2.88398]
[1744259135214,7.07369409,1613.9,1613.8,43.68398]
[1744259135420,5.83399409,1613.9,1613.8,48.68398]
[1744259135621,1.4913,1614.2,1614.1,1.23955]
[1744259135817,1.5291,1614.3,1614.2,1.23947]
[1744259136022,6.08842136,1614.4,1614.3,1.23939]
[1744259136222,6.08842136,1614.4,1614.3,2.88359]
[1744259137532,13.28494387,1614.4,1614.3,2.88359]
[1744259138229,13.28494387,1614.4,1614.3,1.6442]
[1744259138427,14.85704387,1614.4,1614.3,2.88359]
[1744259141730,2.81145,1614.4,1614.3,2.88359]
[1744259143235,1.23939,1614.3,1614.2,4.44722]
[1744259143537,2.81148,1614.4,1614.3,1.23939]
[1744259143732,1.23939,1614.3,1614.2,1.23942]
[1744259144033,1.23955,1614.2,1614.1,2.81489]
[1744259144436,1.23955,1614.2,1614.1,43.61489]
[1744259145639,2.89635,1614.2,1614.1,43.61489]
[1744259146643,2.82385,1614.3,1614.2,1.23947]
[1744259146836,2.82385,1614.3,1614.2,2.83887]
[1744259147240,1.23945,1614.3,1614.2,2.83887]
[1744259147539,2.81496,1614.4,1614.3,1.23939]
[1744259147734,2.81496,1614.4,1614.3,2.83879]
[1744259149045,2.81496,1614.4,1614.3,1.5994]
[1744259149238,2.81498,1614.4,1614.3,1.23939]
[1744259149439,2.81498,1614.4,1614.3,2.88099]
[1744259149744,4.442,1614.5,1614.4,1.23932]
[1744259150041,11.9165065,1614.6,1614.5,1.23924]
[1744259150344,6.08251241,1614.6,1614.5,1.23924]
[1744259150545,6.08251241,1614.6,1614.5,1.6416]
[1744259150944,6.51760241,1614.6,1614.4,3.2078]
[1744259151136,1.23939,1614.3,1614.2,2.88103]
[1744259151340,1.23939,1614.3,1614.2,1.23943]
[1744259151643,1.23939,1614.3,1614.2,42.03943]
[1744259153146,1.23939,1614.3,1614.2,47.03943]
[1744259154948,1.23939,1614.3,1614.2,47.03947]
[1744259155446,1.23939,1614.3,1614.2,45.8]
[1744259155748,1.23939,1614.3,1614.2,47.03947]
[1744259156246,1.23939,1614.3,1614.2,45.8]
[1744259156649,2.85489,1614.3,1614.2,47.03947]
[1744259156950,1.23939,1614.3,1614.2,42.03947]
[1744259157750,12.2176965,1614.5,1614.2,42.03947]
[1744259157948,11.9166165,1614.5,1614.4,1.23932]
[1744259159248,13.4667165,1614.5,1614.4,1.23932]
[1744259159850,1.23932,1614.4,1614.3,4.44713]
[1744259160549,1.23932,1614.4,1614.3,45.24713]
[1744259160749,6.08262241,1614.4,1614.3,45.24713]
[1744259164051,6.08262241,1614.4,1613.8,1.23972]
[1744259164052,20.1152965,1614.4,1613.8,1.23972]
[1744259164242,1.2397,1613.9,1613.8,1.23972]
[1744259164443,1.2397,1613.9,1613.8,40.8]
[1744259164641,2.8137,1613.9,1613.8,50.3377361]
[1744259164843,4.2891,1613.9,1613.8,50.3377361]
[1744259165655,4.2891,1613.9,1613.8,55.3377361]
[1744259166448,4.2891,1613.9,1613.8,14.5377361]
[1744259166956,4.2891,1613.9,1613.8,15.7775161]
[1744259167156,4.2891,1613.9,1613.8,10.7775161]
[1744259167556,4.2891,1613.9,1613.8,9.5377361]
[1744259167857,4.2891,1613.9,1613.8,10.7775161]
[1744259168058,4.2891,1613.9,1613.8,9.5377361]
[1744259169557,1.23978,1613.8,1613.7,3.2078]
[1744259169759,7.20198,1613.8,1613.7,3.2078]
[1744259171756,13.03597409,1613.8,1613.7,3.2078]
[1744259175255,13.96596776,1613.8,1613.7,3.2078]
[1744259176262,13.96596776,1613.8,1613.7,4.44765]
[1744259176463,13.96596776,1613.8,1613.7,3.2078]
[1744259177065,1.23985,1613.7,1613.6,43.67727]
[1744259177265,4.30355,1613.7,1613.6,43.67727]
[1744259178660,3.0637,1613.7,1613.6,43.67727]
[1744259178863,6.77327367,1613.8,1613.7,1.23985]
[1744259179164,6.77327367,1613.8,1613.7,4.41275]
[1744259180368,6.77327367,1613.8,1613.7,9.41275]
[1744259180761,10.69799643,1613.8,1613.7,9.41275]
[1744259182174,10.69799643,1613.8,1613.7,4.41275]
[1744259183070,11.93777643,1613.8,1613.7,4.41275]
[1744259183567,6.10378234,1613.8,1613.7,4.41275]
[1744259184170,4.86400234,1613.8,1613.7,4.41275]
[1744259184869,0.00928591,1613.8,1613.7,4.41275]
[1744259187163,0.00928591,1613.8,1613.7,7.62055]
[1744259188769,1.24906591,1613.8,1613.7,7.62055]
[1744259188964,0.00928591,1613.8,1613.7,6.01935]
[1744259189166,1.59628591,1613.8,1613.7,6.01935]
[1744259190467,0.00928591,1613.8,1613.7,6.01935]
[1744259191778,0.00928591,1613.8,1613.7,11.01935]
[1744259193385,0.00928591,1613.8,1613.7,16.01935]
[1744259194178,0.00928591,1613.8,1613.7,11.01935]
[1744259194778,1.24906591,1613.8,1613.7,9.7795]
[1744259194977,1.24906591,1613.8,1613.7,8.2078]
[1744259195180,5.88596591,1613.8,1613.7,3.2078]
[1744259195385,1.23985,1613.7,1613.6,1.23988]
[1744259195588,2.80415,1613.7,1613.6,1.23988]
[1744259195793,2.80415,1613.7,1613.6,42.03988]
[1744259197193,1.5643,1613.7,1613.6,42.03988]
[1744259197392,2.80415,1613.7,1613.6,43.64358]
[1744259198493,1.5643,1613.7,1613.6,43.64358]
[1744259198991,2.80415,1613.7,1613.6,43.64358]
[1744259200092,4.32169591,1613.8,1613.7,1.23985]
[1744259200290,4.32169591,1613.8,1613.7,2.82115]
[1744259200495,5.97989591,1613.8,1613.7,2.82115]
[1744259202690,1.23985,1613.7,1613.6,42.03987]
[1744259202890,2.83745,1613.7,1613.6,42.03987]
[1744259203595,2.83745,1613.7,1613.6,40.8]
[1744259204296,1.23993,1613.6,1613.5,4.44775]
[1744259204495,2.83153,1613.6,1613.5,4.44775]
[1744259204696,1.5916,1613.6,1613.5,45.24775]
[1744259204991,1.5916,1613.6,1613.5,46.77985]
[1744259205594,1.23991,1613.7,1613.6,1.23993]
[1744259205795,1.23991,1613.7,1613.6,2.77203]
[1744259206092,2.83151,1613.7,1613.6,2.77203]
[1744259206798,2.83151,1613.7,1613.6,5.97983]
[1744259208497,2.83151,1613.7,1613.6,2.77203]
[1744259208697,2.83151,1613.7,1613.6,5.97983]
[1744259209196,2.83151,1613.7,1613.6,2.77203]
[1744259209893,1.5916,1613.7,1613.6,5.97983]
[1744259211094,2.83145,1613.7,1613.6,5.97983]
[1744259211293,9.17932284,1613.8,1613.7,1.23985]
[1744259211494,10.75852284,1613.8,1613.7,2.87645]
[1744259212397,5.90091591,1613.8,1613.7,2.87645]
[1744259212599,0.00928591,1613.8,1613.7,7.87645]
[1744259212799,0.00928591,1613.8,1613.7,9.41495]
[1744259214398,0.00928591,1613.8,1613.7,50.21495]
[1744259217091,5.91e-06,1613.8,1613.7,61.21095]
[1744259220099,5.91e-06,1613.8,1613.7,69.68182613]
[1744259221205,5.91e-06,1613.8,1613.7,64.68182613]
[1744259221595,5.91e-06,1613.8,1613.7,57.14732613]
[1744259222494,5.91e-06,1613.8,1613.7,62.14732613]
[1744259223193,5.91e-06,1613.8,1613.7,53.67645]
[1744259225408,5.91e-06,1613.8,1613.7,59.67245]
[1744259227400,5.91e-06,1613.8,1613.7,54.67245]
[1744259229199,5.91e-06,1613.8,1613.7,47.03985]
[1744259229404,1.53530591,1613.8,1613.7,47.03985]
[1744259229805,1.53530591,1613.8,1613.7,48.71585]
[1744259232102,1.53530591,1613.8,1613.7,47.03985]
[1744259232609,5.91e-06,1613.8,1613.7,47.03985]
[1744259232806,1.55490591,1613.8,1613.7,47.03985]
[1744259233414,7.79468591,1613.8,1613.7,47.03985]
[1744259233709,7.79468591,1613.8,1613.7,45.8]
[1744259234118,7.79468591,1613.8,1613.7,5.0]
[1744259234312,1.23985,1613.7,1613.6,4.45694]
[1744259234509,2.82835,1613.7,1613.6,45.25694]
[1744259234714,7.82835,1613.7,1613.6,0.00928]
[1744259234909,1.24008,1613.4,1613.3,10.94785611]
[1744259235413,2.82857,1613.5,1613.4,1.24008]
[1744259235610,2.82857,1613.5,1613.3,53.71549611]
[1744259235816,2.82858,1613.4,1613.3,54.95557611]
[1744259236011,2.82858,1613.4,1613.3,51.74777611]
[1744259239819,2.82858,1613.4,1613.3,51.74785611]
[1744259240620,2.82858,1613.4,1613.3,42.04016]
[1744259241019,2.82858,1613.4,1613.3,45.24796]
[1744259242917,2.82858,1613.4,1613.3,44.0078]
[1744259243121,2.82858,1613.4,1613.3,3.2078]
[1744259243317,2.82858,1613.4,1613.3,4.44796]
[1744259243510,2.82858,1613.4,1613.3,3.2078]
[1744259243717,2.82858,1613.4,1613.3,4.44796]
[1744259243927,1.5885,1613.4,1613.3,4.44796]
[1744259244419,1.5885,1613.4,1613.3,6.10716]
[1744259244615,2.82858,1613.4,1613.3,6.10716]
[1744259244822,2.82858,1613.4,1613.3,8.2078]
[1744259245019,2.82858,1613.4,1613.3,49.0078]
[1744259245320,11.0145,1613.4,1612.9,3.2078]
[1744259245642,1.24047,1612.9,1612.8,4.44827]
[1744259245818,1.24047,1612.9,1612.8,40.8]
[1744259246314,1.24047,1612.9,1612.8,44.0078]
[1744259246510,2.85147,1612.9,1612.8,44.0078]
[1744259248120,1.24055,1612.8,1612.7,9.70769611]
[1744259248325,2.82695,1612.8,1612.7,9.70769611]
[1744259248523,2.82695,1612.8,1612.7,1.24062]
[1744259248826,1.5864,1612.8,1612.7,1.24062]
[1744259249122,1.5864,1612.8,1612.7,2.85392]
[1744259249321,0.00928591,1612.9,1612.8,1.24055]
[1744259249526,0.00928591,1612.9,1612.8,6.06165]
[1744259250923,1.53078591,1612.9,1612.8,11.06165]
[1744259251324,2.77125591,1612.9,1612.8,8.2078]
[1744259251628,2.77125591,1612.9,1612.8,5.0]
[1744259252229,1.24055,1612.8,1612.7,1.24062]
[1744259252415,1.5215,1612.8,1612.7,1.24062]
[1744259252726,2.76205,1612.8,1612.7,1.24062]
[1744259253524,1.5215,1612.8,1612.7,1.24062]
[1744259253719,1.5215,1612.8,1612.7,2.85742]
[1744259254321,1.24085,1612.4,1612.3,9.70769611]
[1744259254521,19.70964409,1612.4,1612.3,1.97914625]
[1744259254722,22.07230097,1612.4,1612.0,19.27822974]
[1744259255027,1.24124,1611.9,1611.8,19.82352983]
[1744259255228,13.87604,1611.9,1611.8,19.82352983]
[1744259255524,13.87604,1611.9,1611.7,29.15652863]
[1744259255525,1.24132,1611.8,1611.7,29.15652863]
[1744259255724,7.07531409,1611.8,1611.7,29.15652863]
[1744259255925,12.07531409,1611.8,1611.7,29.15652863]
[1744259256428,12.61130939,1611.8,1611.7,29.15652863]
[1744259258934,12.74940939,1611.8,1611.7,29.15652863]
[1744259259130,12.21341409,1611.8,1611.7,6.01765978]
[1744259259831,1.24147,1611.6,1611.5,1.6482]
[1744259260023,8.87727,1611.6,1611.5,1.6482]
[1744259260224,13.87727,1611.6,1611.5,1.6482]
[1744259260522,8.87727,1611.6,1611.5,1.6482]
[1744259260718,9.41540209,1611.6,1611.5,1.6482]
[1744259262227,9.41540209,1611.6,1611.2,40.8]
[1744259262228,1.2417,1611.3,1611.2,40.8]
[1744259262426,1.77983209,1611.3,1611.2,40.8]
[1744259262627,6.20883209,1611.3,1611.2,40.8]
[1744259263033,6.20883209,1611.3,1611.2,47.0008]
[1744259263234,0.53813209,1611.3,1611.2,51.45038]
[1744259263534,0.53813209,1611.3,1611.2,56.45038]
[1744259263732,1.24168,1611.4,1611.3,1.2417]
[1744259263933,1.24168,1611.4,1611.3,8.9131]
[1744259264433,1.24168,1611.4,1611.3,13.3646]
[1744259265235,5.83399409,1611.7,1611.3,12.6714]
[1744259265434,5.67136,1611.8,1611.7,1.24139]
[1744259265635,5.67136,1611.8,1611.7,7.44219]
[1744259265836,6.21135337,1611.8,1611.7,6.2008]
[1744259266239,1.24139,1611.7,1611.6,1.5691]
[1744259266541,1.78138337,1611.7,1611.6,1.5691]
[1744259267333,3.64362337,1611.7,1611.4,6.2008]
[1744259267635,1.24147,1611.6,1611.5,6.2008]
[1744259268029,4.44927,1611.6,1611.5,6.2008]
[1744259268229,4.98926337,1611.6,1611.5,6.2008]
[1744259268732,1.78146337,1611.6,1611.5,6.2008]
[1744259269839,4.98926337,1611.6,1611.5,6.2008]
[1744259270040,4.98926337,1611.6,1611.5,11.89385]
[1744259270236,0.53999337,1611.6,1611.5,7.44235]
[1744259270433,7.07544409,1611.7,1611.6,1.24147]
[1744259270640,1.24145,1611.7,1611.6,9.00917]
[1744259270841,1.24145,1611.7,1611.6,12.2192]
[1744259271036,1.78237082,1611.7,1611.6,12.2192]
[1744259273234,1.78237082,1611.7,1611.6,1.5669]
[1744259273640,3.43747082,1611.7,1611.6,1.5669]
[1744259275838,2.89655,1611.7,1611.6,1.5669]
[1744259276443,1.24162,1611.4,1611.3,4.47335]
[1744259276743,1.78309501,1611.4,1611.3,8.92485]
[1744259276944,1.78309501,1611.4,1611.3,15.12565]
[1744259277842,1.78309501,1611.4,1611.3,15.5022]
[1744259278042,1.78309501,1611.4,1611.3,16.7439]
[1744259279037,0.54147501,1611.4,1611.3,16.7439]
[1744259279246,0.54147501,1611.4,1611.3,12.2924]
[1744259280039,1.78309501,1611.4,1611.3,12.2924]
[1744259280245,1.78309501,1611.4,1611.3,15.5022]
[1744259280943,7.6170891,1611.4,1611.3,15.5022]
[1744259281244,1.242,1611.0,1610.9,1.24197]
[1744259281451,1.242,1611.0,1610.9,5.69347]
[1744259281641,1.242,1611.0,1610.9,11.89427]
[1744259282045,1.78445486,1611.0,1610.9,11.89427]
[1744259282644,1.78445486,1611.0,1610.9,14.97397]
[1744259284248,1.78445486,1611.0,1610.9,13.732]
[1744259284437,6.21245486,1611.0,1610.9,6.2008]
[1744259284642,6.21245486,1611.0,1610.2,1.24253]
[1744259284643,1.24252,1610.3,1610.2,1.24253]
[1744259285048,1.78497486,1610.3,1610.2,50.047]
[1744259286248,1.78497486,1610.3,1610.2,45.5955]
[1744259286549,1.24252,1610.3,1610.2,40.8]
[1744259286850,1.24252,1610.3,1610.2,45.5955]
[1744259287050,1.24252,1610.3,1610.2,47.18]
[1744259287545,0.54176898,1610.3,1610.2,52.18]
[1744259287753,0.54176898,1610.3,1610.2,53.42255]